[Event "EICC 2025"]
[Site "Eforie-Nord"]
[Date "2025.03.17"]
[Round "3.4"]
[White "Anton Guijarro, David"]
[Black "Dudin, Gleb"]
[Result "1/2-1/2"]
[Annotator "TA"]
[ECO "A22"]
[WhiteElo "2663"]
[BlackElo "2544"]
[PlyCount "49"]
[EventDate "2025.03.14"]
[EventType "swiss"]
[EventCountry "ROU"]
[SourceTitle "playchess.com"]
[Source "ChessBase"]
[SourceQuality "1"]
[TimeControl "40/5400+30:1800+30"]

{[%evp 9,49,16,24,16,31,-33,-34,-29,-22,-18,-16,-40,-6,-25,5,-39,-38,-33,-27,-30,11,-27,10,18,17,21,27,25,28,31,56,-14,-1,-1,-9,-27,-27,-23,4,-53,10,-48]} 1. c4 {[%emt 0:00:07]} e5 {[%emt 0:01:45][%cal Be7e5,Be5e4][%mdl 32]} 2. Nc3 {[%emt 0:00:15]} Nf6 {[%emt 0:00:35]} 3. Nf3 {[%emt 0:00:21]} e4 {[%emt 0:01:53]} 4. Ng5 {[%emt 0:01:15]} c6 {[%emt 0:00:13]} 5. Qa4 {[%emt 0:01:38]} Qe7 {[%emt 0:01:05]} 6. Qc2 {[%emt 0:07:59][%cal Rg5e4] A22: English Opening: 1...e5 2 Nc3 Nf6.} b5 {[%emt 0:00:34]} 7. Ngxe4 {[%emt 0:09:56]} (7. e3 $14) 7... Nxe4 $15 {[%emt 0:03:49]} 8. Qxe4 $146 {[%emt 0:09:23] Black is slightly better.} ({Predecessor:} 8. Nxe4 bxc4 9. b3 d5 10. Ng3 cxb3 11. axb3 h5 12. Bb2 h4 13. Nf5 Qg5 14. Nd4 {1-0 Urazayev,A (2458)-Souleidis,G (2407) Titled Tuesday intern op 29th Nov Late blitz 2022 (6)}) 8... Qxe4 {[%emt 0:00:23]} 9. Nxe4 {[%emt 0:00:04]} bxc4 {[%emt 0:00:07]} 10. b3 {[%emt 0:00:19]} d5 {[%emt 0:06:53]} 11. Ng3 {[%emt 0:00:24]} Na6 {[%emt 0:09:25]} 12. Bb2 {[%emt 0:18:47]} h5 {[%emt 0:15:38] [#]} 13. h4 {[%emt 0:02:02]} (13. bxc4 h4 14. Rc1 hxg3 15. fxg3 dxc4 $17 (15... Rb8 $2 16. Be5 $19)) 13... Nb4 {[%emt 0:03:48]} 14. Kd1 {[%emt 0:00:20]} Bg4 {[%emt 0:00:07]} 15. f3 {[%emt 0:08:53]} Be6 {[%emt 0:00:42]} 16. a3 {[%emt 0:01:24]} Na6 {[%emt 0:01:43] [#] Hoping for ...Rb8.} 17. bxc4 {[%emt 0:00:26]} dxc4 {[%emt 0:00:55]} 18. Ne4 {[%emt 0:01:32]} f6 {[%emt 0:01:17]} 19. e3 {[%emt 0:01:23]} Rb8 {[%emt 0:02:59]} 20. Kc2 {[%emt 0:01:38]} ({White should play} 20. Bd4 $1 $14) 20... Nc5 $11 {[%emt 0:05:24]} 21. Nxc5 {[%emt 0:07:16]} Bxc5 {[%emt 0:00:09]} 22. Bc3 {[%emt 0:01:01] White is weak on the light squares} Ke7 {[%emt 0:04:39]} 23. Be2 {[%emt 0:03:43]} Rb3 {[%emt 0:02:14][%cal Oh8b8]} 24. Bb4 {[%emt 0:02:04]} (24. Rhb1 $1 $11) 24... Kd6 {[%emt 0:04:25]} (24... Bd6 $1 $15) 25. Rhc1 {[%emt 0:09:09] Weighted Error Value: White=0.25 (precise) /Black=0.18 (very precise)   Mistake:       	White=4     	Black=1      Inaccurate:     	White=2     	Black=5      OK:         	White=7     	Black=5      Best:        	White=2     	---} (25. Rhb1 $11) 1/2-1/2

[Event "EICC 2025"]
[Site "Eforie-Nord"]
[Date "2025.03.17"]
[Round "3.4"]
[White "Gumularz, Szymon"]
[Black "Pajeken, Jakob Leon"]
[Result "1/2-1/2"]
[Annotator "TA"]
[ECO "D02"]
[WhiteElo "2591"]
[BlackElo "2427"]
[PlyCount "91"]
[EventDate "2025.03.14"]
[EventType "swiss"]
[EventCountry "ROU"]
[SourceTitle "playchess.com"]
[Source "ChessBase"]
[SourceQuality "1"]
[TimeControl "40/5400+30:1800+30"]

{[%evp 11,91,0,15,14,21,21,27,18,31,37,54,-7,68,66,122,115,105,113,113,112,125,128,120,126,210,216,215,158,159,152,165,140,134,118,149,145,145,140,134,122,115,127,107,119,156,158,153,154,166,177,179,92,120,109,108,73,71,79,83,46,36,12,15,0,86,0,0,0,65,59,59,59,61,59,59,12,14,0,0,0,0,0]} 1. d4 {[%emt 0:00:06]} Nf6 {[%emt 0:00:09]} 2. Nf3 {[%emt 0:00:07]} e6 {[%emt 0:00:13]} 3. Bf4 {[%emt 0:00:08]} c5 {[%emt 0:04:55]} 4. e3 {[%emt 0:00:27]} Nc6 {[%emt 0:00:25]} 5. Nbd2 {[%emt 0:00:22]} d5 {[%emt 0:01:18]} 6. c3 {[%emt 0:00:09]} h6 {[%emt 0:00:24] 6...cxd4 is a critical line.} 7. Ne5 {[%emt 0:03:00] D02: 1 d4 d5 2 Nf3 sidelines, including 2...Nf6 3 g3 and 2...Nf6 3 Bf4.} Nxe5 {[%emt 0:04:35]} 8. dxe5 {[%emt 0:00:44]} Nd7 {[%emt 0:00:12]} 9. e4 $146 {[%emt 0:06:03] White has an edge.} (9. Bd3 Be7 10. Qg4 g5 11. Bg3 h5 12. Qf3 h4 13. O-O-O hxg3 14. hxg3 Rxh1 15. Rxh1 Nxe5 {0-1 Nasir,Z (2057)-Estrada Nieto,J (2217) Titled Tuesday intern op 01st Aug Early blitz 2023 (7)}) 9... g5 {[%emt 0:05:43]} 10. Bg3 {[%emt 0:00:17]} Bg7 {[%emt 0:01:00][%cal Bf8g7,Bg7e5,Be5f4][%mdl 32]} 11. exd5 {[%emt 0:15:00]} (11. h4 $14) 11... Nxe5 {[%emt 0:05:59]} (11... exd5 $11 12. Nf3 O-O) 12. Bb5+ $14 {[%emt 0:04:10][%cal Bf1b5,Bb5d7,Bd7e6,Be6d5,Bd5f3][%mdl 32]} Bd7 {[%emt 0:06:13]} (12... Kf8 $14) 13. Bxe5 $1 $16 {[%emt 0:00:12]} Bxe5 {[%emt 0:00:10]} 14. Qe2 $36 {[%emt 0:00:05][%mdl 2048] Black is under strong pressure.} Bf4 {[%emt 0:08:18]} 15. Ne4 {[%emt 0:05:16]} (15. dxe6 Bxd2+ 16. Kd1 Bxb5 17. Qxb5+ Kf8 $17 (17... Ke7 $2 18. Kc2 $19)) 15... O-O {[%emt 0:13:17]} 16. Bxd7 {[%emt 0:00:07]} (16. Nxc5 $2 Bxb5 17. Qxb5 Qxd5 $19) 16... exd5 {[%emt 0:00:14]} 17. Nxc5 {[%emt 0:00:05][%cal Od7a4]} Qc7 {[%emt 0:06:09]} (17... b6 $16 {was necessary.}) 18. g3 $1 $18 {[%emt 0:06:06]} Bd6 {[%emt 0:02:48] [#]} 19. Ne6 {[%emt 0:00:09]} fxe6 {[%emt 0:00:25]} 20. Bxe6+ {[%emt 0:03:16]} ({Don't take} 20. Qxe6+ Kg7) 20... Kg7 {[%emt 0:03:02]} 21. O-O {[%emt 0:00:25]} Rae8 {[%emt 0:02:36] [#]} 22. Qg4 $1 {[%emt 0:00:13][%cal Oa1d1]} Bc5 {[%emt 0:05:47]} 23. Bxd5 {[%emt 0:00:47]} Qe5 {[%emt 0:07:27]} 24. Bf3 {[%emt 0:04:43]} Qf5 {[%emt 0:02:20]} 25. Kg2 {[%emt 0:03:47]} Qxg4 {[%emt 0:02:10]} 26. Bxg4 {[%emt 0:00:20]} Rd8 {[%emt 0:00:42]} 27. b4 {[%emt 0:08:19]} Bb6 {[%emt 0:00:21]} 28. c4 {[%emt 0:02:25]} Rd4 {[%emt 0:03:04] [#]} 29. Be6 {[%emt 0:00:31]} a5 {[%emt 0:02:45]} 30. Rab1 {[%emt 0:00:59]} Rd2 {[%emt 0:00:36]} 31. bxa5 {[%emt 0:01:55]} (31. c5 $18 Ba7 32. a3 (32. bxa5 Bxc5 33. Rxb7+ Kg6 $18)) 31... Rdxf2+ {[%emt 0:01:45]} 32. Rxf2 {[%emt 0:00:08]} Rxf2+ {[%emt 0:00:06][%mdl 4096] Endgame KRB-KRB. White is two pawns up.} 33. Kh3 {[%emt 0:02:09]} Bxa5 {[%emt 0:00:30]} 34. Rxb7+ {[%emt 0:02:40]} Kg6 {[%emt 0:00:18][%cal Oh6h5]} 35. Ra7 {[%emt 0:06:28]} Bc3 {[%emt 0:01:01]} 36. Ra3 {[%emt 0:21:20]} Bf6 {[%emt 0:03:23]} 37. Ra7 {[%emt 0:00:43]} ({White should try} 37. Bd5 $11) 37... Bc3 $16 {[%emt 0:00:24]} 38. Ra6 {[%emt 0:02:33]} (38. Bd7 $16) 38... h5 $11 {[%emt 0:00:40][%cal Bh6h5,Bh5h4][%mdl 32]} 39. c5 {[%emt 0:00:28]} Bf6 {[%emt 0:01:26]} (39... Bd4 $11) 40. g4 $14 {[%emt 0:00:54]} h4 {[%emt 0:00:41]} 41. Bd5 {[%emt 0:06:55]} Rd2 {[%emt 0:04:28]} 42. Rd6 {[%emt 0:01:32]} Kg7 $1 {[%emt 0:00:21] ...Be5 is the strong threat.} 43. Rd7+ {[%emt 0:02:58]} (43. Bb3 $14 Re2 44. Bd1 Rxa2 45. Rd7+ Kg6 46. Rd5) 43... Kh8 $1 $11 {[%emt 0:01:35] ( -> ...Be5). The position is equal.} 44. c6 {[%emt 0:09:04] and c7 should not be overlooked} Be5 {[%emt 0:00:07][%csl Ge5][%cal Rd2h2]} 45. Bg2 {[%emt 0:00:05]} Rxa2 {[%emt 0:00:18]} 46. Rd8+ {[%emt 0:04:08] White really could win this.   Weighted Error Value: White=0.15 (very precise) /Black=0.13 (very precise)   Mistake:       	White=5     	Black=4      Inaccurate:     	White=2     	Black=2      OK:         	White=16    	Black=17     Best:        	White=2     	Black=3      Strong:       	White=2     	Black=2} 1/2-1/2

[Event "EICC 2025"]
[Site "Eforie-Nord"]
[Date "2025.03.17"]
[Round "3.5"]
[White "Petrov, Nikita"]
[Black "Sargsyan, Sargis Vach."]
[Result "1-0"]
[Annotator "TA"]
[ECO "C77"]
[WhiteElo "2588"]
[BlackElo "2424"]
[PlyCount "84"]
[EventDate "2025.03.14"]
[EventType "swiss"]
[EventCountry "ROU"]
[SourceTitle "playchess.com"]
[Source "ChessBase"]
[SourceQuality "1"]
[TimeControl "40/5400+30:1800+30"]

{[%evp 11,84,4,22,11,17,14,14,10,5,0,16,2,6,0,-4,-14,-6,0,-4,-11,0,-13,-10,-58,-48,-172,0,4,0,8,13,9,57,0,17,0,70,0,0,0,0,0,0,-120,-10,-62,-55,-39,0,0,0,-62,-72,-71,-48,-48,-68,-79,118,113,225,171,197,197,614,255,433,205,29990,29991,29991,29992,29992,29993,1327]} 1. e4 {[%emt 0:00:03]} e5 {[%emt 0:00:56]} 2. Nf3 {[%emt 0:00:11]} Nc6 {[%emt 0:00:27]} 3. Bb5 {[%emt 0:00:06][%cal Bf1b5,Bb5a4,Ba4b3][%mdl 32]} a6 {[%emt 0:01:00]} 4. Ba4 {[%emt 0:00:07]} Nf6 {[%emt 0:00:13]} 5. Nc3 {[%emt 0:00:46]} b5 {[%emt 0:04:51]} 6. Bb3 {[%emt 0:00:07]} Bc5 {[%emt 0:01:39]} 7. Nd5 {[%emt 0:01:16] C77: Ruy Lopez: 3...a6 4 Ba4 Nf6, unusual lines.} O-O {[%emt 0:11:10]} 8. d3 {[%emt 0:00:29]} h6 {[%emt 0:01:19]} 9. c3 {[%emt 0:01:03] The position is equal.} Rb8 {[%emt 0:15:42]} 10. a4 {[%emt 0:09:45]} d6 {[%emt 0:01:33]} 11. axb5 {[%emt 0:05:33]} axb5 {[%emt 0:00:06]} 12. d4 {[%emt 0:04:44]} exd4 {[%emt 0:00:33]} 13. cxd4 {[%emt 0:00:07]} Nxd5 {[%emt 0:02:14]} 14. dxc5 {[%emt 0:05:41]} Nf6 {[%emt 0:00:10]} 15. cxd6 {[%emt 0:01:04] Bf4 is the strong threat.} Nxe4 {[%emt 0:17:00]} 16. dxc7 {[%emt 0:21:38]} (16. Qc2 {is more complex.} Nb4 17. Qxc7 Nd3+ 18. Ke2) 16... Qxc7 {[%emt 0:00:09]} 17. Qc2 $146 {[%emt 0:08:33]} (17. Be3 $11 {is superior.}) (17. O-O Bg4 18. Qc2 Bxf3 19. gxf3 Nf6 20. Bxh6 {1-0 Godena,M (2535)-Naiditsch,A (2639) EU-chT (Men) 16th 2007 (8.1)}) 17... Bf5 $15 {[%emt 0:12:45]} 18. Nd4 {[%emt 0:01:32] [#]} (18. Be3 $1 $15 Rbc8 19. Qe2) 18... Nxd4 $2 {[%emt 0:00:52]} (18... Nxf2 19. Nxf5 (19. Qxf2 Nxd4 20. Qxd4 Rbd8 $15) 19... Nxh1 20. Kf1 $15) (18... Nd2 $1 $19 19. Nxf5 (19. Qxd2 Rfe8+ 20. Kf1 Red8 $17) 19... Rfe8+ 20. Be6 (20. Kxd2 $2 Rbd8+ $19) (20. Ne3 $2 Nxb3 21. Ra3 Nbd4 $17) 20... Rxe6+ 21. Ne3 Nc4) 19. Qxc7 $11 {[%emt 0:00:09]} Nxb3 {[%emt 0:00:02]} 20. Qf4 {[%emt 0:04:48]} Bg6 {[%emt 0:05:20]} (20... Nxa1 21. Qxf5 Nc2+ 22. Kd1 $16) 21. Ra3 {[%emt 0:02:40]} Nd4 {[%emt 0:00:10]} 22. Kf1 {[%emt 0:05:38]} ({White should try} 22. Re3 $1 $14 Nc2+ 23. Ke2) 22... Rbd8 {[%emt 0:06:28]} 23. g3 {[%emt 0:10:40]} (23. f3 Ne6 24. Qe3 Rd1+ 25. Ke2 Rxh1 $17) 23... Nc2 {[%emt 0:01:12]} ({Black should try} 23... Nc5 $11) 24. Ra7 {[%emt 0:03:14]} (24. Ra6 $14) 24... Ng5 {[%emt 0:02:30]} 25. h4 {[%emt 0:02:12]} Ne6 {[%emt 0:02:24]} 26. Qe5 {[%emt 0:02:11][%cal Oc1e3]} Ned4 {[%emt 0:00:45]} 27. Rc7 {[%emt 0:04:15] Inhibits Nc6.} (27. Qf4 $11) 27... Nf3 {[%emt 0:01:35] A dynamic duo of knights.} (27... Rfe8 $17 28. Re7 Rf8) 28. Qf4 {[%emt 0:00:52]} (28. Qxb5 Nce1 (28... Bd3+ 29. Qxd3 Rxd3 30. Rxc2 $11) 29. Rc3 Rd3 $15) (28. Qe2 $1 $11 Bd3 29. Rxc2) 28... Nce1 $36 {[%emt 0:00:53][%cal Rg6d3][%mdl 3072] Black has compensation. Black is pushing.} 29. Rc3 {[%emt 0:01:11]} Rd3 {[%emt 0:01:41]} (29... Bd3+ 30. Rxd3 Rxd3 31. Be3 $11) (29... Rfe8 $5 30. Qc7 (30. Rxf3 Nxf3 31. Qxf3 Be4 $17) 30... Rd1 31. Rxf3 Nxf3+ 32. Kg2 Rxh1 (32... Ne1+ 33. Kh3 $17) 33. Kxf3 (33. Kxh1 $2 Re1+ 34. Kg2 Be4 $19) 33... Rhe1 $17) 30. h5 {[%emt 0:00:55]} Bh7 {[%emt 0:00:17]} 31. Ke2 {[%emt 0:01:55]} (31. Rc7 $11) 31... Re8+ {[%emt 0:00:38] Black has strong rooks and is better} 32. Be3 {[%emt 0:00:05]} Rd2+ {[%emt 0:00:04]} 33. Kf1 {[%emt 0:00:03]} Rxb2 {[%emt 0:01:50] White must now prevent ...b4.} 34. Qg4 {[%emt 0:02:02] [#]} Kh8 $2 {[%emt 0:02:17]} (34... Ne5 $1 $17 {[%cal Re5g4] stays on course.} 35. Rc8 Bd3+ 36. Kxe1 Kh7 37. Qxg7+ Kxg7 38. Rxe8 Nf3+ 39. Kd1 Ra2) 35. Qd7 $16 {[%emt 0:01:24][%csl LRe8,LRf7]} Rg8 {[%emt 0:01:26]} (35... Rf8 $16) 36. Bc1 {[%emt 0:00:10]} (36. Qxf7 $2 {too greedy.} b4 37. Bxh6 bxc3 38. Bxg7+ Rxg7 $19) 36... Ra2 {[%emt 0:01:25]} 37. Qxf7 {[%emt 0:00:44]} Ra4 {[%emt 0:01:02]} (37... Ra1) 38. Ke2 {[%emt 0:00:46]} (38. Rxf3 Nxf3 39. Qxf3 Be4 $16) (38. Bxh6 $142 Be4 39. Qe7) 38... Rc4 $2 {[%emt 0:02:05]} (38... Ne5 39. Qe6 N1d3) 39. Bb2 {[%emt 0:00:40]} (39. Rxf3 Nxf3 40. Rd1 (40. Kxf3 Be4+ 41. Ke2 Rc2+ 42. Bd2 Bxh1 $17) 40... Ne5 $17) (39. Rxc4 $142 Bd3+ 40. Ke3 bxc4 41. Qe7) 39... Rd8 $2 {[%emt 0:02:31]} (39... Rb4 $18) 40. Rxc4 {[%emt 0:00:30][%csl Gf7][%cal Rb2g7] White mates.} Rd2+ {[%emt 0:00:05]} 41. Ke3 {[%emt 0:30:05][%csl Gf7][%cal Rb2g7]} Rd3+ {[%emt 0:30:12]} 42. Kf4 {[%emt 0:00:52][%csl Gb2][%cal Rf7g7]} Ng2+ {[%emt 0:00:10] Weighted Error Value: White=0.48/Black=0.60  Missed win:     	---       	Black=1      Mistake:       	White=8     	Black=7      Inaccurate:     	---       	Black=1      OK:         	White=14    	Black=13     Best:        	White=2     	Black=4} 1-0

[Event "EICC 2025"]
[Site "Eforie-Nord"]
[Date "2025.03.17"]
[Round "3.5"]
[White "Quparadze, Giga"]
[Black "Navara, David"]
[Result "0-1"]
[Annotator "TA"]
[ECO "B92"]
[WhiteElo "2543"]
[BlackElo "2663"]
[PlyCount "172"]
[EventDate "2025.03.14"]
[EventType "swiss"]
[EventCountry "ROU"]
[SourceTitle "playchess.com"]
[Source "ChessBase"]
[SourceQuality "1"]
[TimeControl "40/5400+30:1800+30"]

{[%evp 23,172,2,17,27,51,0,18,0,0,-8,-8,-17,-6,-19,0,-20,-7,-16,-14,-30,-25,-32,-12,-16,-12,-63,-50,-91,-84,-87,-82,-80,-85,-83,-71,-74,-75,-106,-100,-103,-107,-97,-91,-90,-90,-85,-91,-91,-95,-91,-92,-93,-95,-96,-91,-97,-88,-91,-91,-91,-91,-91,-93,-108,-102,-115,-113,-117,-119,-137,-137,-143,-128,-168,-148,-161,-161,-161,-161,-160,-151,-170,-162,-160,-160,-159,-128,-165,-153,-147,-134,-158,-158,-158,-158,-158,-158,-158,-158,-158,-158,-150,-143,-143,0,-143,-143,-143,-142,-143,-129,-206,-210,-210,-210,-210,-210,-210,-210,-210,-210,-210,-210,-210,-195,-195,-183,-191,-173,-173,-168,-180,-179,-174,-180,-243,-235,-242,-237,-266,-261,-302,-299,-297,-297,-275,-141,-29977,-29978,-29977,-29966]} 1. e4 {[%emt 0:00:03]} c5 {[%emt 0:00:03]} 2. Nf3 {[%emt 0:00:10]} d6 {[%emt 0:00:04]} 3. d4 {[%emt 0:00:07]} cxd4 {[%emt 0:00:03]} 4. Nxd4 {[%emt 0:00:05]} Nf6 {[%emt 0:00:07]} 5. Nc3 {[%emt 0:00:06]} a6 {[%emt 0:00:04]} 6. Be2 {[%emt 0:00:05]} e5 {[%emt 0:00:05]} 7. Nb3 {[%emt 0:00:04]} Be7 {[%emt 0:00:10]} 8. O-O {[%emt 0:00:06]} O-O {[%emt 0:00:09]} 9. Kh1 {[%emt 0:00:02]} Nc6 {[%emt 0:01:31]} 10. f4 {[%emt 0:00:08]} exf4 {[%emt 0:04:27]} 11. Bxf4 {[%emt 0:00:07]} Be6 {[%emt 0:00:09]} 12. Qe1 {[%emt 0:00:14]} Nd7 {[%emt 0:04:01]} 13. Rd1 {[%emt 0:00:09] B92: Sicilian Najdorf: 6 Be2.} Nde5 {[%emt 0:00:32]} 14. Qg3 {[%emt 0:00:11]} Re8 {[%emt 0:17:27]} 15. Rd2 $146 {[%emt 0:04:42] The position is equal.} (15. Nd5 Bh4 16. Qc3 Ng6 17. Be3 Bxd5 18. exd5 Nb4 19. Bg4 Nxa2 20. Qd2 Nb4 21. c3 Nxd5 22. Qxd5 Rxe3 23. Rxf7 {½-½ Arenas Vanegas,D (2427)-Bacallao Alonso,Y (2530) Capablanca Memorial op-A 46th 2011 (7)}) 15... Bh4 {[%emt 0:05:48]} 16. Qe3 {[%emt 0:00:06]} Qc7 {[%emt 0:00:53]} 17. Rfd1 {[%emt 0:05:29]} Rad8 {[%emt 0:00:48]} 18. Nd4 {[%emt 0:00:50]} Nxd4 {[%emt 0:01:46]} 19. Qxd4 {[%emt 0:00:12]} Ng4 {[%emt 0:09:06]} 20. Bxg4 {[%emt 0:04:25]} Bxg4 {[%emt 0:00:10]} 21. Rf1 {[%emt 0:00:03][%cal Rf4d6]} Bf6 {[%emt 0:04:31]} 22. Bxd6 {[%emt 0:00:39] Hoping for Rxf6.} Bxd4 {[%emt 0:00:43] A strong pair of Bishops.} 23. Bxc7 {[%emt 0:00:07]} Rd7 {[%emt 0:00:09][%cal Od4c3]} 24. Bg3 {[%emt 0:01:14]} (24. Ba5 $11) 24... f6 {[%emt 0:12:19]} 25. Rb1 {[%emt 0:06:35]} Bxc3 {[%emt 0:01:26]} 26. Rxd7 {[%emt 0:00:05]} Bxd7 {[%emt 0:00:10]} 27. bxc3 $17 {[%emt 0:00:02][%mdl 4096] Endgame KRB-KRB. White is a pawn up.} Bc6 {[%emt 0:00:25]} 28. e5 {[%emt 0:00:10]} fxe5 {[%emt 0:10:14]} 29. Kg1 {[%emt 0:07:06]} Rd8 {[%emt 0:11:51]} 30. Bxe5 {[%emt 0:00:31]} Rd2 $1 {[%emt 0:00:04][%csl LRc2,LRg2]} 31. g4 {[%emt 0:02:14]} Rxc2 {[%emt 0:10:01] Black is more active.} 32. a3 {[%emt 0:00:07]} Ra2 {[%emt 0:00:48]} 33. Bd6 {[%emt 0:00:46]} Rg2+ {[%emt 0:00:41]} 34. Kf1 {[%emt 0:00:05]} Rxg4 {[%emt 0:00:08]} 35. Rb4 {[%emt 0:00:10]} Rg6 {[%emt 0:03:08]} 36. Rd4 {[%emt 0:00:39]} h6 {[%emt 0:02:25]} 37. Bg3 {[%emt 0:01:19]} Rg5 {[%emt 0:00:56]} 38. Ke2 {[%emt 0:00:09]} Kf7 {[%emt 0:00:36]} 39. Kd3 {[%emt 0:00:55]} Ke6 {[%emt 0:01:20]} 40. Kc2 {[%emt 0:02:21]} Ra5 {[%emt 0:00:36]} 41. Kb3 {[%emt 0:30:42]} Rf5 {[%emt 0:03:17]} 42. Rd6+ {[%emt 0:00:00]} Kf7 {[%emt 0:02:36]} 43. Rd4 {[%emt 0:00:00]} g5 {[%emt 0:00:46]} 44. h4 {[%emt 0:00:00]} Kg6 {[%emt 0:01:29]} 45. hxg5 {[%emt 0:00:00]} hxg5 {[%emt 0:00:09]} 46. Bc7 {[%emt 0:00:00]} Kh5 {[%emt 0:04:30]} 47. Rd8 {[%emt 0:00:00]} Kg4 {[%emt 0:00:35]} 48. c4 {[%emt 0:00:00]} Kh3 {[%emt 0:03:10]} 49. Rh8+ {[%emt 0:00:00]} Kg2 $1 {[%emt 0:00:44]} 50. Rg8 {[%emt 0:00:00]} Bf3 {[%emt 0:01:18]} 51. Kb4 {[%emt 0:00:00]} g4 {[%emt 0:00:15]} 52. a4 {[%emt 0:00:00]} Rf7 {[%emt 0:04:51]} 53. Bd6 {[%emt 0:00:00]} Rf6 {[%emt 0:00:05]} 54. Bb8 {[%emt 0:00:00]} Re6 {[%emt 0:00:37]} 55. a5 {[%emt 0:00:00]} Re3 {[%emt 0:01:58]} 56. Rg7 {[%emt 0:00:00]} Bd1 {[%emt 0:02:18]} 57. Rd7 {[%emt 0:00:00]} Rb3+ {[%emt 0:00:45]} 58. Kc5 {[%emt 0:00:00]} Bf3 {[%emt 0:01:44]} 59. Rg7 {[%emt 0:00:00]} Kf2 {[%emt 0:01:04]} 60. Be5 {[%emt 0:00:00]} Ke2 {[%emt 0:01:17]} 61. Bc7 {[%emt 0:00:00]} Re3 {[%emt 0:00:49]} 62. Kd4 {[%emt 0:00:00]} Re4+ {[%emt 0:01:39]} 63. Kc3 {[%emt 0:00:00]} Re3+ {[%emt 0:00:09]} 64. Kd4 $1 {[%emt 0:00:00]} Rd3+ {[%emt 0:00:05]} 65. Kc5 {[%emt 0:00:00]} Kd2 {[%emt 0:00:16]} 66. Bf4+ {[%emt 0:00:00]} Kc3 {[%emt 0:01:41]} 67. Rg6 {[%emt 0:00:00] [#]} (67. Re7 $17) 67... Rd8 $1 $19 {[%emt 0:00:54]} 68. Be5+ {[%emt 0:00:00]} Kd3 {[%emt 0:00:56]} 69. Kb4 {[%emt 0:00:00]} Re8 {[%emt 0:01:50]} 70. Rd6+ {[%emt 0:00:00]} Ke3 {[%emt 0:01:27]} 71. Bd4+ {[%emt 0:00:00]} Kf4 {[%emt 0:02:07]} 72. Rf6+ {[%emt 0:00:00]} Kg3 {[%emt 0:00:14]} 73. Rg6 {[%emt 0:00:00]} Kg2 {[%emt 0:00:36]} 74. Bb6 {[%emt 0:00:00]} Rc8 {[%emt 0:00:48] Threatens to win with ...Rc6.} ({Inferior is} 74... g3 75. Bc7 $14) 75. Bd4 {[%emt 0:00:00]} Be2 {[%emt 0:00:30]} 76. c5 {[%emt 0:00:00]} Bf3 {[%emt 0:00:15]} 77. Rg7 {[%emt 0:00:00]} Re8 {[%emt 0:00:20]} 78. c6 {[%emt 0:00:00]} bxc6 {[%emt 0:00:08]} 79. Ra7 {[%emt 0:00:00]} (79. Bb6 $142) 79... Be2 {[%emt 0:00:49]} 80. Bb6 {[%emt 0:00:00]} Rg8 {[%emt 0:01:00]} 81. Rd7 {[%emt 0:00:00]} g3 {[%emt 0:00:13]} 82. Rd2 {[%emt 0:00:00]} Kf3 {[%emt 0:00:28]} 83. Rc2 {[%emt 0:00:00]} Rg4+ {[%emt 0:00:41]} 84. Ka3 {[%emt 0:00:00]} Rc4 {[%emt 0:00:32] Wards off Rc3+} (84... Bc4 $19 85. Rc3+ Ke2) 85. Kb3 $2 {[%emt 0:00:00][%mdl 8192] [#]} (85. Rxc4 $17 Bxc4 86. Kb4) 85... Rxc2 $1 {[%emt 0:00:25]} 86. Kxc2 {[%emt 0:00:00]} Kg2 {[%emt 0:00:07] Weighted Error Value: White=0.11 (very precise) /Black=0.05 (flawless)   Loses game:     	White=1     	---        Mistake:       	White=3     	Black=1      Inaccurate:     	White=5     	---        OK:         	White=23    	Black=34     Best:        	White=6     	Black=6      Strong:       	White=1     	Black=2} 0-1

[Event "EICC 2025"]
[Site "Eforie-Nord"]
[Date "2025.03.17"]
[Round "3.6"]
[White "Can, Isik"]
[Black "Gledura, Benjamin"]
[Result "1/2-1/2"]
[Annotator "TA"]
[ECO "B07"]
[WhiteElo "2539"]
[BlackElo "2658"]
[PlyCount "30"]
[EventDate "2025.03.14"]
[EventType "swiss"]
[EventCountry "ROU"]
[SourceTitle "playchess.com"]
[Source "ChessBase"]
[SourceQuality "1"]
[TimeControl "40/5400+30:1800+30"]

{[%evp 20,30,4,0,0,0,23,14,24,16,29,25,33]} 1. Nf3 {[%emt 0:03:17]} Nf6 {[%emt 0:00:58]} 2. g3 {[%emt 0:00:07]} g6 {[%emt 0:03:22]} 3. Bg2 {[%emt 0:01:42]} Bg7 {[%emt 0:00:10]} 4. O-O {[%emt 0:00:08]} O-O {[%emt 0:00:17]} 5. d4 {[%emt 0:00:07]} d6 {[%emt 0:04:47]} 6. Re1 {[%emt 0:00:15]} Nbd7 {[%emt 0:04:45]} 7. e4 {[%emt 0:00:10]} e5 {[%emt 0:00:08]} 8. Nc3 {[%emt 0:02:40]} c6 {[%emt 0:03:05]} 9. a4 {[%emt 0:01:47]} Re8 {[%emt 0:02:42]} 10. h3 {[%emt 0:02:07]} Qc7 {[%emt 0:06:57]} 11. Be3 {[%emt 0:00:56]} b6 {[%emt 0:02:10] B07: Pirc Defence: Miscellaneous Systems.} 12. g4 {[%emt 0:03:55]} Bb7 {[%emt 0:13:29]} 13. d5 {[%emt 0:00:27]} Nc5 $146 {[%emt 0:05:59]} (13... cxd5 14. exd5 a6 15. Qd2 Rac8 16. Ra3 e4 17. Ng5 Ne5 18. Rb3 Nc4 19. Qd1 Nxb2 20. Rxb2 Qxc3 21. Rxb6 {0-1 Zakaryan,D (2335)-Chigaev,M (2521) Chigorin Memorial blitz 23rd 2015 (1)}) 14. Nd2 {[%emt 0:06:26]} h6 {[%emt 0:07:03]} 15. Nf1 {[%emt 0:11:47]} a6 {[%emt 0:13:48] A rather calm draw.   Weighted Error Value: White=0.02 (flawless) /Black=0.12 (very precise)   OK:         	White=2     	Black=1} 1/2-1/2